bitfinex/quotes_ETHUSD_20251230
["timestamp","ask_amount","ask_price","bid_price","bid_amount"]
[1767105610508,6.74539278,2965.0,2963.9,2.65866]
[1767105610710,3.37269639,2965.0,2963.9,2.65866]
[1767105611066,9.10299278,2965.0,2963.9,2.65866]
[1767105611402,4.25760449,2965.1,2963.9,2.65866]
[1767105611604,2.3576,2965.0,2964.0,3.37381916]
[1767105611902,2.3576,2965.0,2964.0,0.70698992]
[1767105612070,2.3576,2965.0,2963.9,3.37393233]
[1767105612267,2.3576,2965.0,2963.6,2.3366]
[1767105612674,2.3576,2965.0,2963.8,3.37396097]
[1767105613010,2.3576,2965.0,2963.6,2.3366]
[1767105613190,2.3576,2964.8,2963.6,6.03289122]
[1767105613504,2.3576,2964.8,2963.6,2.65866]
[1767105613713,2.3576,2964.8,2963.7,2.3366]
[1767105614010,0.885,2965.0,2963.8,2.3366]
[1767105614224,2.3576,2964.9,2963.6,3.69630289]
[1767105614515,0.885,2965.0,2963.6,3.69630289]
[1767105614516,2.3576,2964.7,2963.7,0.36963029]
[1767105614692,2.3576,2964.7,2963.7,2.70623029]
[1767105614896,0.885,2965.0,2963.9,2.3366]
[1767105615085,2.3576,2964.9,2963.8,0.002]
[1767105615486,2.3576,2964.9,2963.2,3.37462863]
[1767105615733,2.3576,2964.7,2963.2,6.33907228]
[1767105616287,2.3576,2964.7,2963.3,2.4192]
[1767105616491,2.3576,2964.7,2963.5,2.4192]
[1767105616717,2.3576,2964.7,2963.7,2.4192]
[1767105617624,0.885,2965.0,2963.9,2.4192]
[1767105617877,12.00586302,2965.3,2964.1,2.4192]
[1767105617997,2.3235,2965.2,2964.1,2.4192]
[1767105618335,2.3235,2965.2,2964.0,0.91672937]
[1767105618498,2.3235,2965.2,2963.7,3.37408504]
[1767105618844,2.3235,2965.2,2963.7,2.4192]
[1767105618991,2.3235,2965.1,2963.7,2.4192]
[1767105619187,6.31,2965.2,2963.9,2.4192]
[1767105619635,6.31,2965.2,2964.1,2.4192]
[1767105619928,6.31,2965.2,2964.3,2.4192]
[1767105620286,0.885,2965.4,2964.3,2.4192]
[1767105620617,2.3235,2966.5,2965.0,2.4192]
[1767105620804,5.69504914,2966.9,2965.4,2.4192]
[1767105621010,0.3382582,2966.7,2965.6,2.4192]
[1767105621235,0.3382582,2966.7,2965.7,2.4192]
[1767105621519,9.40332402,2966.7,2965.7,2.4192]
[1767105621719,9.40332402,2966.7,2965.2,6.71859742]
[1767105621720,2.3235,2966.6,2964.8,2.4192]
[1767105621920,2.3235,2966.6,2964.9,2.4192]
[1767105622119,2.3235,2966.4,2965.1,2.4192]
[1767105622328,2.3235,2966.4,2965.2,5.79164757]
[1767105622544,2.3235,2966.4,2965.4,3.37219774]
[1767105622822,2.3235,2966.4,2965.5,3.37207728]
[1767105623018,2.3235,2966.4,2965.4,2.4192]
[1767105623221,2.3235,2966.2,2965.1,3.37249004]
[1767105623414,2.3235,2966.2,2965.2,3.37242094]
[1767105623610,2.3235,2966.2,2965.2,5.79162094]
[1767105623811,2.3235,2966.0,2964.7,2.4192]
[1767105624126,2.3235,2966.0,2964.7,3.3032]
[1767105624323,2.3235,2965.8,2964.7,2.4192]
[1767105624623,2.3235,2965.6,2964.7,2.4192]
[1767105625024,2.3235,2965.6,2964.8,3.37288935]
[1767105625223,0.884,2965.7,2965.0,3.37259908]
[1767105625443,0.9066361,2965.9,2965.0,3.37267415]
[1767105625617,2.73491361,2965.8,2964.9,2.4192]
[1767105625796,2.3235,2965.6,2964.5,4.25724953]
[1767105626124,6.74377044,2965.7,2964.3,2.4192]
[1767105626125,2.3235,2965.4,2964.3,2.4192]
[1767105626298,2.3235,2965.4,2964.5,3.37321294]
[1767105626496,2.3235,2965.4,2964.3,2.4192]
[1767105626701,2.3235,2965.4,2963.8,0.01013924]
[1767105626702,2.3235,2965.2,2964.1,3.37369276]
[1767105627000,2.3235,2965.2,2964.3,3.37339639]
[1767105627513,2.3235,2965.2,2964.4,3.373351]
[1767105627713,0.32075,2965.3,2964.3,5.79262803]
[1767105627714,6.01666433,2965.3,2964.3,5.79262803]
[1767105627922,2.3235,2965.2,2964.3,2.4192]
[1767105628118,2.92516643,2965.1,2964.1,3.37368552]
[1767105628442,2.3235,2965.0,2964.1,3.37368552]
[1767105628608,2.3235,2964.9,2963.9,2.4192]
[1767105628806,1.48566643,2965.1,2964.2,3.37351023]
[1767105629011,1.48566643,2965.1,2964.3,3.37344143]
[1767105629411,0.884,2965.1,2964.4,2.45293363]
[1767105629731,0.32075,2965.3,2964.4,5.82625441]
[1767105629732,6.016593,2965.3,2964.4,5.82625441]
[1767105629914,2.3235,2965.2,2963.8,2.4192]
[1767105630116,2.3235,2965.2,2964.1,3.37360681]
[1767105630634,2.3235,2965.2,2963.9,2.45293932]
[1767105630834,2.3235,2965.0,2964.1,3.37365864]
[1767105631033,2.3235,2964.9,2963.5,2.4192]
[1767105631207,2.3235,2964.9,2963.6,3.37416616]
[1767105631406,2.3235,2964.9,2963.7,3.37413371]
[1767105631809,2.3235,2964.7,2963.7,3.37413371]
[1767105632036,0.9388936,2965.1,2963.9,2.4192]
[1767105632238,2.3235,2965.2,2963.9,2.4192]
[1767105632424,2.3235,2965.0,2963.8,0.91676056]
[1767105632735,2.3235,2965.0,2963.9,2.4192]
[1767105632913,0.885,2965.1,2964.1,2.4192]
[1767105633633,2.3235,2965.0,2963.8,3.33596056]
[1767105633938,3.69374404,2964.9,2963.8,3.33596056]
[1767105634113,0.32085,2964.9,2963.8,6.74808197]
[1767105634306,2.3235,2965.0,2963.8,6.74808197]
[1767105634307,2.3235,2965.0,2963.9,2.4192]
[1767105634506,2.3235,2964.9,2963.9,2.4192]
[1767105634706,0.001,2965.1,2963.9,2.4192]
[1767105635154,2.3245,2965.1,2964.0,2.45293819]
[1767105635303,2.3245,2965.1,2964.0,2.4192]
[1767105635506,2.55695,2965.1,2964.1,2.4192]
[1767105635706,0.23345,2965.1,2964.1,2.4192]
[1767105635941,2.55695,2965.1,2964.2,3.37359152]
[1767105636449,2.3235,2965.5,2964.4,2.4192]
[1767105636644,0.001,2966.3,2964.4,2.4192]
[1767105636645,2.3235,2965.8,2964.4,2.4192]
[1767105637430,2.3235,2965.8,2964.6,2.4192]
[1767105637948,6.57937049,2965.8,2964.7,3.37302256]
[1767105638137,7.62774098,2965.8,2964.7,5.79222256]
[1767105638340,2.3235,2965.6,2964.7,2.4192]
[1767105638923,2.3235,2965.6,2964.1,2.4192]
[1767105639142,2.3235,2965.6,2964.3,2.4192]
[1767105639143,0.884,2965.5,2964.3,2.4192]
[1767105639664,3.2075,2965.5,2964.5,2.4192]
[1767105639959,3.2075,2965.5,2964.5,5.79239218]
[1767105639960,2.64425,2965.4,2964.5,5.79239218]
[1767105640152,6.01658129,2965.4,2964.5,2.4192]
[1767105640743,6.01658129,2965.4,2964.5,5.79239728]
[1767105640744,2.64425,2965.4,2964.5,5.79239728]
[1767105641061,2.3235,2965.8,2964.6,2.4192]
[1767105641229,2.3235,2965.8,2964.7,2.4192]
[1767105641750,2.3235,2965.8,2964.4,0.002]
[1767105641958,2.3245,2965.8,2964.4,0.002]
[1767105642132,2.3235,2965.6,2964.4,0.002]
[1767105642333,2.3235,2965.4,2964.4,0.002]
[1767105642550,2.3235,2965.2,2964.4,0.002]
[1767105643853,2.3235,2965.2,2963.9,2.4192]
[1767105644024,2.3235,2965.1,2963.8,3.3739634]
[1767105644354,2.3235,2964.9,2963.9,2.4192]
[1767105644524,2.3235,2964.7,2963.7,3.37408682]
[1767105644849,2.3235,2964.7,2963.9,3.37391418]
[1767105645059,2.3235,2964.7,2963.8,5.79322495]
[1767105645364,0.90688626,2964.8,2964.0,2.4192]
[1767105645532,2.3235,2964.9,2963.2,2.4192]
[1767105645738,2.3235,2964.9,2963.6,5.79340962]
[1767105646249,6.74536256,2965.0,2963.6,5.79340962]
[1767105646250,2.3186,2964.7,2963.6,5.79340962]
[1767105646566,2.3186,2964.5,2963.6,2.4192]
[1767105646866,0.32026,2964.4,2963.6,2.4192]
[1767105647437,2.63886,2964.4,2963.6,2.4192]
[1767105647858,2.63886,2964.4,2963.3,2.4048]
[1767105648168,6.01231468,2964.4,2963.3,2.4048]
[1767105648327,3.37330374,2964.5,2963.5,2.4048]
[1767105648527,2.3186,2964.4,2963.5,2.4048]
[1767105650070,4.25718967,2964.6,2963.5,2.4048]
[1767105650240,2.3186,2964.7,2963.7,5.77896067]
[1767105650568,2.3186,2964.6,2963.5,2.4048]
[1767105651135,2.3186,2964.6,2963.6,2.4048]
[1767105651930,0.885,2964.7,2963.8,2.4048]
[1767105652130,4.25804364,2964.7,2963.8,2.4048]
[1767105652355,5.25298756,2964.7,2963.9,2.4048]
[1767105652557,0.99494392,2964.7,2963.9,2.4048]
[1767105652762,6.31,2965.2,2963.8,3.3739488]
[1767105652763,2.3186,2965.2,2964.1,2.4048]
[1767105653054,3.37285707,2965.8,2964.3,2.4048]
[1767105653257,2.3186,2965.7,2964.5,2.4048]
[1767105653457,2.3186,2965.5,2964.5,2.4048]
[1767105653661,0.001,2965.8,2964.7,2.4048]
[1767105653858,0.001,2966.3,2965.0,7.517528]
[1767105654051,0.001,2966.3,2965.1,2.4048]
[1767105654227,0.001,2966.3,2965.3,2.4048]
[1767105654432,0.001,2966.3,2965.4,2.4048]
[1767105654636,2.3196,2966.3,2965.5,0.32888]
[1767105654976,2.3196,2966.3,2965.3,2.4048]
[1767105655644,0.001,2966.3,2965.3,2.4048]
[1767105655842,0.001,2966.7,2965.6,2.4048]
[1767105656046,3.37148322,2967.0,2965.8,2.4048]
[1767105656047,0.001,2967.0,2965.8,2.4048]
[1767105656463,0.001,2967.0,2965.9,6.74331568]
[1767105656664,5.68953342,2967.5,2966.1,2.4048]
[1767105656863,5.68953342,2967.5,2966.3,2.4048]
[1767105657064,2.3196,2967.5,2966.3,2.4048]
[1767105657257,0.001,2967.5,2966.3,2.4048]
[1767105657787,2.3186,2967.4,2966.3,3.2888]
[1767105657940,2.3186,2967.4,2966.4,0.32888]
[1767105658581,0.001,2967.8,2966.6,7.03309344]
[1767105658730,0.001,2967.8,2966.7,2.3867]
[1767105658933,0.001,2967.8,2966.9,2.3867]
[1767105659586,3.3798,2968.4,2966.9,2.3867]
[1767105659785,2.4958,2968.4,2967.2,2.3867]
[1767105660076,2.4958,2968.8,2967.5,2.3867]
[1767105660241,2.4958,2968.8,2967.5,0.884]
[1767105660441,2.4958,2968.8,2967.6,2.3867]
[1767105660671,3.36847778,2968.7,2967.7,5.75631283]
[1767105660869,3.36847778,2968.7,2967.4,2.3867]
[1767105660870,3.08222778,2968.6,2967.4,2.3867]
[1767105661058,3.08222778,2968.6,2967.6,3.36969895]
[1767105661374,0.001,2969.3,2968.0,10.712984]
[1767105661576,2.4958,2969.2,2967.9,2.3867]
[1767105661751,2.4958,2969.1,2967.4,0.01013924]
[1767105661951,2.4958,2969.1,2967.6,6.64037814]
[1767105662155,2.4958,2968.9,2967.8,2.3867]
[1767105662368,0.001,2969.3,2967.9,2.3867]
[1767105662676,0.001,2969.3,2968.5,2.3867]
[1767105662876,0.001,2969.3,2968.5,0.884]
[1767105663259,0.001,2969.3,2968.5,3.2707]
[1767105663445,0.001,2969.3,2968.6,2.3867]
[1767105663851,0.001,2969.3,2967.9,3.37942555]
[1767105663852,0.001,2969.3,2968.2,2.3867]
[1767105664054,0.001,2969.6,2968.4,2.3867]
[1767105664456,2.4958,2969.5,2968.5,2.3867]
[1767105664672,3.36851706,2969.6,2968.0,2.3867]
[1767105664673,5.8634837,2969.4,2968.0,2.3867]
[1767105664878,5.8634837,2969.4,2968.2,3.2697]
[1767105665245,9.2311674,2969.4,2968.2,3.2697]
[1767105665443,9.2311674,2969.4,2967.7,7.04323268]
[1767105665444,10.70245,2969.1,2967.7,2.3867]
[1767105665647,2.4958,2969.0,2967.7,2.3867]
[1767105665867,2.4958,2969.0,2967.9,2.3867]
[1767105666471,2.4958,2969.0,2967.6,0.883]
[1767105666677,5.86405086,2968.9,2967.7,2.3867]
[1767105666877,9.81870681,2968.9,2967.8,1.12167]
[1767105667082,2.4958,2968.8,2967.8,3.50837]
[1767105667286,0.884,2968.7,2967.3,4.391279]
[1767105667502,2.4958,2968.6,2967.4,3.40357859]
[1767105667655,2.4958,2968.6,2967.4,5.79027859]
[1767105667965,2.4958,2968.6,2967.5,0.03369839]
[1767105668151,0.884,2968.7,2967.5,0.03369839]
[1767105668152,2.83378,2968.5,2967.5,0.03369839]
[1767105668555,2.83378,2968.5,2967.4,2.3867]
[1767105668789,2.4958,2968.3,2967.4,2.3867]
[1767105668989,2.4958,2968.3,2967.1,2.3867]
[1767105669174,2.4958,2968.3,2967.4,3.36994829]
[1767105669380,2.4958,2968.3,2967.4,4.28599]
[1767105669767,2.4958,2968.3,2967.4,6.67269]
[1767105669964,2.4958,2968.3,2967.4,3.30274171]
[1767105670457,2.4958,2968.3,2967.4,2.3867]
[1767105670861,3.36904521,2968.2,2967.4,2.3867]
[1767105672083,5.86447858,2968.6,2967.5,2.3867]
[1767105672661,2.4958,2968.6,2967.7,2.3867]
[1767105672994,2.4958,2968.6,2967.6,0.03369726]
[1767105672995,0.001,2968.9,2967.9,2.3867]
[1767105673166,0.001,2968.9,2968.1,2.3867]
[1767105673365,0.884,2969.2,2968.2,2.3867]
[1767105673567,4.2519279,2969.2,2968.2,2.3867]
[1767105674323,2.4958,2969.4,2968.2,2.3867]
[1767105674495,3.36847725,2969.6,2968.4,2.3867]
[1767105674674,0.001,2969.6,2968.4,2.3867]
[1767105675006,0.001,2969.6,2968.6,2.3867]
[1767105677112,0.001,2970.1,2968.8,2.3178]
[1767105677275,3.59524541,2970.1,2969.0,2.3178]
[1767105677477,0.001,2970.1,2969.0,2.3178]
[1767105677883,3.36789852,2970.1,2969.0,2.3178]
[1767105678299,9.00569704,2970.1,2969.0,2.3178]
[1767105678497,2.2709,2970.0,2969.0,3.2008]
[1767105678701,2.2709,2970.0,2969.0,2.3178]
[1767105678997,2.2709,2969.8,2968.4,2.3178]
[1767105679197,2.2709,2969.6,2968.4,2.3178]
[1767105679809,2.2709,2969.6,2968.5,2.3178]
[1767105680299,0.883,2969.5,2968.5,2.3178]
[1767105680513,2.2709,2970.0,2968.5,2.35148704]
[1767105680801,2.83476896,2970.0,2968.7,2.3178]
[1767105681183,9.56890426,2970.0,2968.9,2.3178]
[1767105681824,2.2709,2969.9,2968.9,2.3178]
[1767105682436,2.2709,2969.9,2968.3,0.883]
[1767105682597,2.2709,2969.7,2968.4,2.3178]
[1767105682793,2.2709,2969.5,2968.4,5.68658288]
[1767105682997,3.1539,2969.5,2968.5,2.3178]
[1767105683425,6.20181273,2970.0,2968.5,10.10607957]
[1767105683626,5.63794377,2970.0,2968.7,1.7821]
[1767105683824,2.2709,2970.0,2968.9,1.7821]
[1767105684026,5.63791959,2970.0,2968.9,1.7821]
[1767105684226,5.63791959,2970.0,2968.5,10.10607957]
[1767105684227,2.2709,2969.9,2968.5,8.51947484]
[1767105684426,2.2709,2969.9,2968.6,1.7821]
[1767105684609,0.90049392,2969.8,2968.7,2.72234748]
[1767105684925,2.2709,2969.7,2968.7,2.72234748]
[1767105685133,2.2709,2969.7,2968.7,1.7821]
[1767105685305,2.2709,2969.6,2968.7,5.15047987]
[1767105685626,2.2709,2969.6,2968.5,0.883]
[1767105687397,2.2709,2969.6,2968.5,4.2516854]
[1767105687729,2.2709,2969.4,2968.5,0.883]
[1767105688337,2.2709,2969.4,2968.3,5.15098593]
[1767105688711,2.2709,2969.3,2967.9,1.7821]
[1767105688910,2.2709,2969.1,2967.9,1.7821]
[1767105689112,2.2709,2968.9,2967.8,3.37141748]
[1767105690040,2.2709,2968.7,2967.9,0.03369385]
[1767105690563,2.2709,2968.7,2967.9,1.81579385]
[1767105690862,2.2709,2968.7,2967.9,1.7821]
[1767105691154,2.2709,2968.7,2967.8,0.002]
[1767105691360,2.2709,2968.6,2967.8,0.002]
[1767105691914,9.00830946,2968.5,2967.8,0.002]
[1767105692243,2.2709,2968.4,2967.8,0.002]
[1767105694249,3.36893171,2968.3,2967.8,0.002]
[1767105694437,5.63976643,2968.4,2967.8,0.002]
[1767105694783,5.63972666,2968.4,2967.8,0.002]
[1767105694938,2.2709,2968.3,2967.8,0.002]
[1767105696939,5.63983311,2968.3,2967.8,0.002]
[1767105697266,2.2709,2968.2,2967.8,0.002]
[1767105697574,2.2709,2968.1,2966.8,1.7841]
[1767105697778,0.883,2968.5,2967.6,1.7841]
[1767105698470,3.36881821,2968.4,2967.6,1.7841]
[1767105698978,6.52265593,2968.5,2967.6,3.36971134]
[1767105699179,5.63965593,2968.5,2967.7,1.7841]
[1767105699970,2.2709,2968.4,2967.7,1.7841]
[1767105700144,2.2709,2968.4,2967.8,0.002]
[1767105700337,0.001,2968.3,2967.8,0.002]
[1767105700539,2.2709,2968.2,2967.8,0.002]
[1767105702152,2.2709,2968.2,2967.3,1.7841]
[1767105702549,3.36915872,2968.1,2967.3,1.7841]
[1767105702974,5.64000077,2968.2,2967.3,5.15416025]
[1767105703142,9.00910154,2968.2,2967.4,1.7841]
[1767105703341,2.2709,2968.1,2967.1,1.7841]
[1767105703541,7.63921169,2968.2,2966.7,3.37072664]
[1767105703542,2.2709,2967.9,2966.8,3.37056637]
[1767105703745,2.2709,2967.9,2966.8,1.7841]
[1767105703953,2.2709,2967.9,2967.1,1.7841]
[1767105704466,2.2709,2969.1,2968.5,0.01013924]
[1767105704653,5.63948207,2969.5,2969.0,0.01013924]
[1767105704971,2.2719,2969.5,2969.4,0.01013924]
[1767105705174,2.2719,2969.5,2969.2,0.01013924]
[1767105705372,2.2709,2969.3,2968.9,0.01013924]
[1767105707786,0.001,2969.5,2969.3,0.01013924]
[1767105709467,0.001,2969.5,2969.1,0.01013924]
[1767105710876,2.4029,2969.5,2968.9,0.01013924]
[1767105711082,2.4019,2969.4,2968.6,0.01013924]
[1767105711772,2.4019,2969.4,2968.1,3.37924943]
[1767105711773,2.4019,2969.2,2968.1,0.01013924]
[1767105711972,2.4019,2969.2,2968.0,0.0515731]
[1767105712175,2.4019,2969.0,2967.8,0.002]
[1767105712372,2.4019,2968.8,2967.8,0.002]
[1767105712582,2.4019,2968.6,2967.8,0.002]
[1767105712783,5.77083171,2968.3,2967.8,0.002]
[1767105713096,5.77083171,2968.3,2967.5,0.01013924]
[1767105713097,2.4019,2968.2,2967.5,0.01013924]
[1767105714084,2.4019,2968.2,2967.3,3.38016124]
[1767105714287,2.4019,2968.2,2967.1,3.37026993]
[1767105714288,2.4019,2968.1,2967.2,0.01013924]
[1767105714489,2.73039,2968.1,2967.2,0.01013924]
[1767105715198,2.4019,2968.0,2967.2,3.38028441]
[1767105715405,2.4019,2968.0,2967.2,0.01013924]
[1767105715590,2.4019,2968.0,2967.2,3.38030143]
[1767105717406,2.4019,2967.9,2967.2,0.01013924]
[1767105717572,2.4019,2967.9,2967.0,3.38050089]
[1767105717573,2.4019,2967.7,2967.0,0.01013924]
[1767105718391,2.4019,2967.6,2967.0,0.01013924]
[1767105718586,0.883,2967.7,2967.0,0.01013924]
[1767105718909,0.883,2967.7,2967.0,1.84673924]
[1767105719074,4.25262557,2967.7,2967.0,1.84673924]
[1767105720086,2.3231,2967.6,2967.0,0.01013924]
[1767105720275,0.57712137,2967.8,2967.1,1.8366]
[1767105720475,3.36841832,2968.8,2967.1,1.8366]
[1767105720476,2.3231,2967.9,2967.1,1.8366]
[1767105720695,2.3231,2967.9,2967.0,0.01013924]
[1767105721020,2.3231,2967.9,2966.8,0.002]
[1767105721219,2.3231,2967.5,2965.8,3.987064]
[1767105721383,10.10883849,2967.7,2965.9,0.01013924]
[1767105721384,2.3231,2967.3,2965.9,0.01013924]
[1767105722306,2.3231,2967.3,2965.7,0.01013924]
[1767105722513,2.3231,2967.3,2965.6,3.37398871]
[1767105722804,2.3231,2967.3,2965.7,3.37187682]
[1767105723103,2.3231,2966.9,2965.6,0.002]
[1767105723320,6.74081562,2967.0,2965.6,0.002]
[1767105723321,2.3231,2966.7,2965.6,0.002]
[1767105724123,2.3231,2966.7,2965.9,0.01013924]
[1767105724286,2.3231,2966.7,2965.7,0.01013924]
[1767105724787,2.3231,2966.7,2965.8,0.03371771]
[1767105725005,2.3231,2966.7,2965.9,0.01013924]
[1767105725181,0.884,2966.8,2966.0,3.37154416]
[1767105725390,0.884,2966.8,2966.0,4.04688325]
[1767105726317,0.884,2966.8,2966.0,0.67533909]
[1767105726507,2.3231,2966.7,2965.9,3.38177786]
[1767105726712,0.32061,2967.2,2965.9,3.38177786]
[1767105727005,2.3231,2967.7,2966.7,0.01013924]
[1767105727180,0.884,2967.9,2967.0,3.37040781]
[1767105727887,4.25342089,2967.9,2966.9,3.38061238]
[1767105728081,6.57652089,2967.9,2966.9,3.38061238]
[1767105728309,2.3231,2967.8,2966.9,3.38061238]
[1767105728506,2.3231,2967.8,2967.0,0.33806124]
[1767105729718,2.3231,2967.8,2967.0,3.70845705]
[1767105730810,2.3231,2967.8,2967.1,0.01013924]
[1767105731528,2.3231,2968.2,2967.1,0.01013924]
[1767105731728,2.3231,2969.0,2967.7,0.01013924]
[1767105732025,2.3231,2968.9,2968.1,0.01013924]
[1767105732329,3.36899615,2969.2,2967.9,0.01013924]
[1767105732330,2.3231,2969.1,2967.9,0.01013924]
[1767105732535,2.3231,2969.1,2968.0,0.883]
[1767105732829,2.3231,2968.9,2968.0,0.883]
[1767105732997,3.3689167,2969.2,2968.1,0.01013924]
[1767105733402,2.3231,2969.1,2968.1,0.01013924]
[1767105733820,0.001,2969.2,2968.5,0.01013924]
[1767105734199,0.001,2969.2,2968.3,0.89313924]
[1767105734443,2.3241,2969.2,2968.3,4.26198471]
[1767105734607,2.3241,2969.2,2968.3,1.65726522]
[1767105734812,2.3241,2969.2,2968.5,3.36868269]
[1767105735013,0.001,2969.5,2968.6,0.01013924]
[1767105735198,0.001,2970.0,2968.6,0.01013924]
[1767105735199,2.3231,2969.9,2968.9,0.01013924]
[1767105735616,2.3231,2969.9,2969.1,0.01013924]
[1767105735935,2.3231,2969.9,2969.1,3.37808491]
[1767105736124,2.8922994,2969.9,2969.1,0.01013924]
[1767105736434,2.3231,2969.9,2969.1,0.01013924]
[1767105736734,5.6902218,2969.9,2969.1,0.01013924]
[1767105737308,2.3231,2969.9,2969.1,0.01013924]
[1767105737610,2.3231,2969.9,2969.1,3.37816153]
[1767105737814,0.001,2970.0,2969.1,3.37816153]
[1767105738136,0.001,2970.3,2969.8,0.01013924]
[1767105738387,0.001,2970.7,2969.9,0.01013924]
[1767105738544,2.3218,2971.1,2970.3,0.01013924]
[1767105738744,2.3218,2971.0,2970.2,0.883]
[1767105739289,2.3218,2971.0,2970.1,0.883]
[1767105740272,2.3218,2970.9,2970.1,0.883]
[1767105740451,2.3218,2970.9,2970.1,4.2498826]
[1767105740648,2.3218,2970.9,2970.1,3.3668826]
[1767105740845,2.3218,2970.9,2970.0,4.2499782]
[1767105741046,2.91380756,2970.9,2970.1,3.36685825]
[1767105741241,2.91380756,2970.9,2969.9,3.37723738]
[1767105741242,2.3218,2970.8,2969.5,0.01013924]
[1767105741447,2.3218,2970.8,2969.3,0.89313924]
[1767105741653,0.001,2970.7,2969.3,0.01013924]
[1767105741853,2.3218,2970.6,2969.1,0.01013924]
[1767105742068,2.3218,2970.6,2968.6,0.01013924]
[1767105742069,2.3218,2970.4,2968.6,0.01013924]
[1767105742274,2.3218,2970.2,2968.7,3.36846661]
[1767105742462,2.3218,2970.0,2968.7,3.36846661]
[1767105742662,6.7333266,2970.3,2968.8,0.01013924]
[1767105742973,6.7333266,2970.3,2968.9,0.9166825]
[1767105742974,2.3218,2970.2,2968.9,0.9166825]
[1767105743172,3.22731266,2970.1,2968.8,0.01013924]
[1767105743377,2.3218,2970.0,2969.7,0.01013924]
[1767105744144,5.68908245,2970.7,2969.9,0.01013924]
[1767105744345,5.68908245,2970.7,2969.7,0.01013924]
[1767105744346,2.3218,2970.6,2970.0,0.01013924]
[1767105744547,2.3218,2970.4,2970.0,0.01013924]
[1767105744867,2.3218,2970.4,2969.5,0.01013924]
[1767105745449,2.3218,2970.4,2969.4,0.01013924]
[1767105745683,2.3218,2970.2,2969.1,0.01013924]
[1767105745980,2.3218,2970.2,2968.7,0.01013924]
[1767105746148,2.3218,2970.0,2968.9,0.01013924]
[1767105746483,2.3218,2969.8,2969.1,0.01013924]
[1767105746648,3.2048,2969.8,2969.1,0.01013924]
[1767105747164,2.3218,2969.7,2969.1,0.01013924]
[1767105748686,2.3218,2969.5,2969.0,0.01013924]
[1767105749180,2.3218,2969.5,2969.0,3.924e-05]
[1767105749555,2.3218,2969.5,2968.7,0.01013924]
[1767105749756,2.3218,2969.5,2968.8,0.01013924]
[1767105749956,2.3218,2969.5,2968.4,0.01013924]
[1767105750157,2.3218,2969.3,2968.6,0.01013924]
[1767105750350,1.24241707,2969.4,2968.9,0.01013924]
[1767105750551,2.3218,2969.5,2969.1,0.01013924]
[1767105751052,0.32048,2969.7,2969.3,0.01013924]
[1767105751259,2.3218,2970.0,2969.3,0.01013924]
[1767105751452,5.68882692,2970.0,2969.3,0.01013924]
[1767105751885,2.3218,2970.0,2969.3,0.01013924]
[1767105752062,2.3218,2970.0,2969.5,0.01013924]
[1767105752259,9.05581574,2970.0,2969.1,0.89313924]
[1767105752564,2.3218,2969.7,2969.1,0.01013924]
[1767105753178,2.3218,2969.7,2969.0,0.01013924]
[1767105753421,2.3218,2969.7,2969.0,0.04382061]
[1767105754111,3.36713148,2969.9,2969.2,0.01013924]
[1767105754416,2.3218,2969.8,2968.8,0.01013924]
[1767105754618,2.3218,2969.6,2968.8,0.01013924]
[1767105756217,5.68925932,2969.6,2968.8,0.01013924]
[1767105756782,6.73491864,2969.6,2968.8,0.01013924]
[1767105756987,6.73491864,2969.6,2968.5,0.01013924]
[1767105756988,2.3218,2969.5,2968.5,0.01013924]
[1767105757290,2.3218,2969.5,2968.8,0.002]
[1767105757291,2.3218,2969.4,2968.8,0.002]
[1767105757497,9.05671864,2969.6,2968.8,0.002]
[1767105758322,2.3218,2969.5,2968.8,0.002]
[1767105758884,2.3218,2969.5,2968.5,2.39273924]
[1767105758885,2.3218,2969.5,2968.5,0.01013924]
[1767105759121,2.3218,2969.5,2968.1,2.39473924]
[1767105759292,2.3218,2969.3,2968.2,0.23947392]
[1767105759491,2.3218,2969.2,2968.2,0.23947392]
[1767105759899,2.3218,2969.0,2968.2,0.23947392]
[1767105761812,5.68994215,2969.0,2968.2,0.23947392]
[1767105762005,2.3218,2968.9,2968.2,0.23947392]
[1767105762200,2.3218,2968.9,2968.1,0.01013924]
[1767105764098,3.36836432,2968.8,2968.1,0.01013924]
[1767105765013,9.05852864,2968.8,2968.1,0.01013924]
[1767105765325,5.69016432,2968.8,2968.1,0.01013924]
[1767105765727,9.05852864,2968.8,2968.1,0.01013924]
[1767105766827,5.69016432,2968.8,2968.1,0.01013924]
[1767105767240,2.3044,2969.2,2968.3,0.01013924]
[1767105767531,4.2508238,2969.3,2968.5,2.39473924]
[1767105767740,0.001,2970.2,2968.9,2.39473924]
[1767105767741,3.3673435,2969.7,2968.9,2.39473924]
[1767105767899,2.3044,2969.8,2968.9,2.39473924]
[1767105768230,5.67163675,2969.8,2969.1,2.39473924]
[1767105768477,9.0388735,2969.8,2969.1,2.39473924]
[1767105768679,9.0388735,2969.8,2969.1,2.3846]
[1767105769349,2.3044,2969.7,2968.9,0.01013924]
[1767105769555,2.3044,2969.7,2968.8,2.3846]
[1767105770262,2.3044,2969.6,2968.7,0.01013924]
[1767105771074,2.3044,2969.4,2968.7,0.01013924]
[1767105771244,2.3044,2969.4,2968.7,0.34903667]
[1767105771678,2.3044,2969.4,2968.7,2.73363667]
[1767105772262,3.36747034,2969.6,2968.8,0.01013924]
[1767105772577,6.73494068,2969.6,2968.8,2.39473924]
[1767105772795,2.3044,2969.5,2968.6,0.883]
[1767105773077,2.3044,2969.3,2968.7,0.01013924]
[1767105774477,3.36761749,2969.5,2968.8,0.03368364]
[1767105774478,2.3054,2969.5,2968.8,0.03368364]
[1767105774678,2.3054,2969.5,2968.7,2.39473924]
[1767105775043,2.3054,2969.5,2968.8,0.03368364]
[1767105775272,2.3054,2969.5,2968.7,2.39473924]
[1767105775879,0.001,2969.5,2968.9,2.39473924]